[Event "*** Titled Tuesday Blitz"]
[Site "Chess.com"]
[Date "2021.04.06"]
[Round "4"]
[White "TigrVShlyape"]
[Black "BogdanDeac"]
[Result "0-1"]
[WhiteElo "2805"]
[BlackElo "3058"]
[TimeControl "180+1"]
[EndTime "10:40:37 PDT"]
[Termination "BogdanDeac won on time"]

1. d4 {[%clk 0:03:00.9]} 1... Nf6 {[%clk 0:02:59.2]} 2. Nf3 {[%clk 0:03:01.5]}
2... d5 {[%clk 0:02:59.3]} 3. Bf4 {[%clk 0:03:02]} 3... c5 {[%clk 0:02:59.9]} 4.
e3 {[%clk 0:03:02.3]} 4... Nc6 {[%clk 0:03:00.2]} 5. Nbd2 {[%clk 0:03:02.9]}
5... Qb6 {[%clk 0:02:56.9]} 6. dxc5 {[%clk 0:03:02.1]} 6... Qxb2 {[%clk
0:02:56.6]} 7. Rb1 {[%clk 0:03:00.7]} 7... Qc3 {[%clk 0:02:56.7]} 8. Bb5 {[%clk
0:02:58.6]} 8... g6 {[%clk 0:02:56.6]} 9. O-O {[%clk 0:02:54.1]} 9... Bg7 {[%clk
0:02:55.2]} 10. Nd4 {[%clk 0:02:40.1]} 10... Bd7 {[%clk 0:01:54.8]} 11. N2b3
{[%clk 0:02:37.1]} 11... O-O {[%clk 0:01:41.2]} 12. Ne2 {[%clk 0:02:35.2]} 12...
Qb4 {[%clk 0:01:40]} 13. a4 {[%clk 0:02:34.6]} 13... Ne4 {[%clk 0:01:06.4]} 14.
f3 {[%clk 0:02:15.3]} 14... Nc3 {[%clk 0:00:59.2]} 15. Nxc3 {[%clk 0:02:12.6]}
15... Bxc3 {[%clk 0:00:56.6]} 16. Qxd5 {[%clk 0:02:06.6]} 16... Be6 {[%clk
0:00:52]} 17. Qd3 {[%clk 0:01:56.5]} 17... Rad8 {[%clk 0:00:31.4]} 18. Qe2
{[%clk 0:01:49.8]} 18... Bxb3 {[%clk 0:00:15.2]} 19. Rxb3 {[%clk 0:01:02.1]}
19... Qxc5 {[%clk 0:00:14.2]} 20. Qc4 {[%clk 0:01:01.6]} 20... Bb4 {[%clk
0:00:12.9]} 21. Rfb1 {[%clk 0:00:52.5]} 21... a5 {[%clk 0:00:09.3]} 22. Qxc5
{[%clk 0:00:44.9]} 22... Bxc5 {[%clk 0:00:09.3]} 23. Bxc6 {[%clk 0:00:43.7]}
23... bxc6 {[%clk 0:00:09.5]} 24. Rc3 {[%clk 0:00:44.2]} 24... Rd5 {[%clk
0:00:09.6]} 25. Kf1 {[%clk 0:00:38.1]} 25... Bd6 {[%clk 0:00:08.6]} 26. e4
{[%clk 0:00:27.4]} 26... Rd4 {[%clk 0:00:08.1]} 27. Bh6 {[%clk 0:00:21.8]} 27...
Rc8 {[%clk 0:00:06.9]} 28. Ke2 {[%clk 0:00:05.3]} 28... Rxa4 {[%clk 0:00:06.1]}
29. h4 {[%clk 0:00:04.7]} 29... f6 {[%clk 0:00:06.2]} 30. Rb7 {[%clk 0:00:03.4]}
30... Kf7 {[%clk 0:00:05.9]} 31. Rcb3 {[%clk 0:00:02.7]} 31... Rb4 {[%clk
0:00:05.8]} 32. R3xb4 {[%clk 0:00:02.5]} 32... axb4 {[%clk 0:00:06.7]} 33. Bd2
{[%clk 0:00:02]} 33... c5 {[%clk 0:00:06.9]} 34. g4 {[%clk 0:00:02]} 34... h5
{[%clk 0:00:06.7]} 35. gxh5 {[%clk 0:00:01.5]} 35... gxh5 {[%clk 0:00:07.6]} 36.
c3 {[%clk 0:00:02]} 36... bxc3 {[%clk 0:00:07.5]} 37. Bxc3 {[%clk 0:00:02.4]}
37... Rg8 {[%clk 0:00:08.1]} 38. Be1 {[%clk 0:00:02.3]} 38... Rg2+ {[%clk
0:00:07.9]} 39. Kd3 {[%clk 0:00:02.6]} 39... Rg1 {[%clk 0:00:08.2]} 40. Ke2
{[%clk 0:00:02.6]} 40... Rh1 {[%clk 0:00:08.1]} 41. Bf2 {[%clk 0:00:02.4]} 41...
Rh2 {[%clk 0:00:08.4]} 42. Kf1 {[%clk 0:00:02.5]} 42... Rh1+ {[%clk 0:00:08.8]}
43. Kg2 {[%clk 0:00:02.7]} 43... Rc1 {[%clk 0:00:08.8]} 44. Be3 {[%clk
0:00:02.9]} 44... Rc2+ {[%clk 0:00:09.1]} 45. Kf1 {[%clk 0:00:02.8]} 45... c4
{[%clk 0:00:09.6]} 46. f4 {[%clk 0:00:02.7]} 46... c3 {[%clk 0:00:09.4]} 47. Rb5
{[%clk 0:00:01.9]} 47... Rh2 {[%clk 0:00:08.6]} 48. e5 {[%clk 0:00:01.4]} 48...
fxe5 {[%clk 0:00:08.2]} 49. fxe5 {[%clk 0:00:01.7]} 49... Ba3 {[%clk 0:00:08.8]}
50. Rb3 {[%clk 0:00:01.2]} 50... Bb2 {[%clk 0:00:09]} 0-1

[Event "*** Titled Tuesday Blitz"]
[Site "Chess.com"]
[Date "2021.04.06"]
[Round "4"]
[White "Torrentec"]
[Black "ecwinslow"]
[Result "1-0"]
[WhiteElo "2439"]
[BlackElo "2202"]
[TimeControl "180+1"]
[EndTime "10:40:37 PDT"]
[Termination "Torrentec won by resignation"]

1. e4 {[%clk 0:03:00.1]} 1... c5 {[%clk 0:02:59.1]} 2. Nf3 {[%clk 0:03:00.3]}
2... d6 {[%clk 0:02:58.6]} 3. Bb5+ {[%clk 0:03:00.4]} 3... Nd7 {[%clk
0:02:57.6]} 4. O-O {[%clk 0:03:00.3]} 4... Nf6 {[%clk 0:02:56.8]} 5. Re1 {[%clk
0:03:00.5]} 5... e6 {[%clk 0:02:56.5]} 6. d4 {[%clk 0:02:58.6]} 6... cxd4 {[%clk
0:02:55.3]} 7. Qxd4 {[%clk 0:02:58.4]} 7... Be7 {[%clk 0:02:51.5]} 8. Nc3 {[%clk
0:02:56.2]} 8... O-O {[%clk 0:02:50]} 9. Bg5 {[%clk 0:02:55.3]} 9... a6 {[%clk
0:02:47.4]} 10. Bf1 {[%clk 0:02:55.1]} 10... b6 {[%clk 0:02:36.8]} 11. Rad1
{[%clk 0:02:54.7]} 11... Qc7 {[%clk 0:02:35.7]} 12. a4 {[%clk 0:02:49.4]} 12...
Bb7 {[%clk 0:02:34.7]} 13. h3 {[%clk 0:02:43.6]} 13... Rfd8 {[%clk 0:02:11]} 14.
Be3 {[%clk 0:02:38.8]} 14... Nc5 {[%clk 0:01:51.4]} 15. Bg5 {[%clk 0:02:28.5]}
15... h6 {[%clk 0:01:47.7]} 16. Bh4 {[%clk 0:02:27.7]} 16... g5 {[%clk
0:01:40.5]} 17. Bg3 {[%clk 0:02:27.7]} 17... e5 {[%clk 0:01:40.4]} 18. Qc4
{[%clk 0:02:21.4]} 18... Rac8 {[%clk 0:01:34.4]} 19. Nd5 {[%clk 0:02:12.2]}
19... Nxd5 {[%clk 0:01:15.6]} 20. exd5 {[%clk 0:02:13.1]} 20... Nd7 {[%clk
0:01:11.7]} 21. Qxc7 {[%clk 0:01:52.9]} 21... Rxc7 {[%clk 0:01:11]} 22. c4
{[%clk 0:01:42.9]} 22... Bf8 {[%clk 0:01:09]} 23. h4 {[%clk 0:01:39.6]} 23... g4
{[%clk 0:01:00.2]} 24. Nd2 {[%clk 0:01:36.8]} 24... Nc5 {[%clk 0:00:56.8]} 25.
b3 {[%clk 0:01:31]} 25... f5 {[%clk 0:00:56.5]} 26. f3 {[%clk 0:01:30]} 26... f4
{[%clk 0:00:40.8]} 27. Bf2 {[%clk 0:01:29.6]} 27... g3 {[%clk 0:00:41]} 28. Bxc5
{[%clk 0:01:29.7]} 28... bxc5 {[%clk 0:00:41.4]} 29. Bd3 {[%clk 0:01:23.9]}
29... Bc8 {[%clk 0:00:38.9]} 30. h5 {[%clk 0:01:21.1]} 30... Rb7 {[%clk
0:00:33.9]} 31. Bg6 {[%clk 0:01:19.3]} 31... Be7 {[%clk 0:00:33]} 32. Rb1 {[%clk
0:01:13.4]} 32... Bd7 {[%clk 0:00:31.5]} 33. Rbc1 {[%clk 0:01:05.1]} 33... Rdb8
{[%clk 0:00:30.7]} 34. Rc3 {[%clk 0:01:05.2]} 34... Kg7 {[%clk 0:00:29.3]} 35.
Ra1 {[%clk 0:01:02.9]} 35... Kf8 {[%clk 0:00:26.7]} 36. Ra3 {[%clk 0:01:00.8]}
36... Bd8 {[%clk 0:00:26.1]} 37. Ne4 {[%clk 0:01:00.7]} 37... Ke7 {[%clk
0:00:25.8]} 38. Rd3 {[%clk 0:00:54.7]} 38... Ba5 {[%clk 0:00:24.1]} 39. Kf1
{[%clk 0:00:54.7]} 39... Bb4 {[%clk 0:00:22]} 40. Ra2 {[%clk 0:00:54.2]} 40...
Ba5 {[%clk 0:00:20.3]} 41. Rb2 {[%clk 0:00:47.5]} 41... Bc7 {[%clk 0:00:16.8]}
42. Nd2 {[%clk 0:00:43]} 42... Bxa4 {[%clk 0:00:16.5]} 43. Ra2 {[%clk
0:00:40.8]} 43... Bxb3 {[%clk 0:00:16.6]} 44. Rxa6 {[%clk 0:00:38]} 44... Bc2
{[%clk 0:00:15.6]} 45. Rda3 {[%clk 0:00:34.9]} 45... Rb2 {[%clk 0:00:12.8]} 46.
Ra7 {[%clk 0:00:32.4]} 46... Kd8 {[%clk 0:00:11.8]} 47. Ra2 {[%clk 0:00:23]}
47... Bd3+ {[%clk 0:00:10.6]} 48. Ke1 {[%clk 0:00:21.6]} 48... Rb1+ {[%clk
0:00:07.7]} 49. Nxb1 {[%clk 0:00:21.2]} 49... Rxb1+ {[%clk 0:00:06.7]} 50. Kd2
{[%clk 0:00:21.4]} 50... Bxc4 {[%clk 0:00:06.9]} 51. Bxb1 {[%clk 0:00:18.4]}
51... Bxd5 {[%clk 0:00:04.6]} 52. Rb2 {[%clk 0:00:13.5]} 52... Bc6 {[%clk
0:00:03.2]} 53. Be4 {[%clk 0:00:13.2]} 53... Bd7 {[%clk 0:00:02.6]} 54. Rbb7
{[%clk 0:00:12.6]} 1-0

[Event "*** Titled Tuesday Blitz"]
[Site "Chess.com"]
[Date "2021.04.06"]
[Round "4"]
[White "GMSrinath"]
[Black "AldokhinIvan"]
[Result "0-1"]
[WhiteElo "2807"]
[BlackElo "2529"]
[TimeControl "180+1"]
[EndTime "10:40:39 PDT"]
[Termination "AldokhinIvan won by resignation"]

1. Nf3 {[%clk 0:03:00.9]} 1... Nf6 {[%clk 0:02:59.9]} 2. c4 {[%clk 0:03:00.6]}
2... g6 {[%clk 0:02:59.9]} 3. b3 {[%clk 0:03:00.5]} 3... Bg7 {[%clk 0:03:00.3]}
4. Bb2 {[%clk 0:03:01.1]} 4... O-O {[%clk 0:03:00.5]} 5. g3 {[%clk 0:03:01.7]}
5... d6 {[%clk 0:03:00.9]} 6. Bg2 {[%clk 0:03:02.2]} 6... Nc6 {[%clk 0:03:01.5]}
7. d4 {[%clk 0:02:53]} 7... Bf5 {[%clk 0:02:54.5]} 8. O-O {[%clk 0:02:50.5]}
8... a5 {[%clk 0:02:27]} 9. d5 {[%clk 0:02:25.8]} 9... Nb4 {[%clk 0:02:26.6]}
10. a3 {[%clk 0:02:14]} 10... Na6 {[%clk 0:02:16]} 11. Nbd2 {[%clk 0:02:08.2]}
11... Nc5 {[%clk 0:02:07.6]} 12. b4 {[%clk 0:02:00.7]} 12... axb4 {[%clk
0:02:01.8]} 13. axb4 {[%clk 0:02:01.6]} 13... Nce4 {[%clk 0:02:00.8]} 14. Nb3
{[%clk 0:01:55.8]} 14... e5 {[%clk 0:01:48.4]} 15. Nh4 {[%clk 0:01:42.5]} 15...
Bd7 {[%clk 0:01:32.4]} 16. Na5 {[%clk 0:01:35.4]} 16... Qc8 {[%clk 0:01:11.6]}
17. Qc1 {[%clk 0:01:31.7]} 17... h6 {[%clk 0:00:55.7]} 18. c5 {[%clk 0:01:28.7]}
18... Bb5 {[%clk 0:00:49.4]} 19. Re1 {[%clk 0:01:22.2]} 19... g5 {[%clk
0:00:48.4]} 20. Nf3 {[%clk 0:01:21.4]} 20... Ng4 {[%clk 0:00:45.2]} 21. cxd6
{[%clk 0:01:03.1]} 21... cxd6 {[%clk 0:00:39.1]} 22. Qxc8 {[%clk 0:00:44.8]}
22... Raxc8 {[%clk 0:00:38.8]} 23. Nxb7 {[%clk 0:00:45.1]} 23... Rc2 {[%clk
0:00:38.3]} 24. Bc1 {[%clk 0:00:36.8]} 24... Ngxf2 {[%clk 0:00:29.1]} 25. Ra3
{[%clk 0:00:30.4]} 25... Bxe2 {[%clk 0:00:27.6]} 26. Re3 {[%clk 0:00:18.5]}
26... Ba6 {[%clk 0:00:24.4]} 27. Na5 {[%clk 0:00:13.4]} 27... f5 {[%clk
0:00:24.6]} 28. Nc6 {[%clk 0:00:12.8]} 28... Rf7 {[%clk 0:00:20.2]} 29. Ra3
{[%clk 0:00:11.9]} 29... Bc4 {[%clk 0:00:18.9]} 30. Be3 {[%clk 0:00:05.5]} 30...
Ng4 {[%clk 0:00:14.7]} 31. Bb6 {[%clk 0:00:02.9]} 31... Bxd5 {[%clk 0:00:13.8]}
32. b5 {[%clk 0:00:03.5]} 32... Rb7 {[%clk 0:00:08]} 33. Ba5 {[%clk 0:00:02.6]}
33... Rxg2+ {[%clk 0:00:07.5]} 34. Kxg2 {[%clk 0:00:02]} 34... Nd2 {[%clk
0:00:08.2]} 35. Ne7+ {[%clk 0:00:02.9]} 35... Rxe7 {[%clk 0:00:07.4]} 36. Rd3
{[%clk 0:00:03.5]} 36... Bxf3+ {[%clk 0:00:07]} 37. Rxf3 {[%clk 0:00:04.4]}
37... Nxf3 {[%clk 0:00:07.7]} 38. Kxf3 {[%clk 0:00:05.3]} 38... e4+ {[%clk
0:00:08.2]} 39. Ke2 {[%clk 0:00:04.4]} 39... Rb7 {[%clk 0:00:07.7]} 40. b6
{[%clk 0:00:03.7]} 40... Bd4 {[%clk 0:00:08]} 41. Rb1 {[%clk 0:00:04.2]} 41...
Ne5 {[%clk 0:00:08.4]} 42. Rc1 {[%clk 0:00:03.4]} 42... Bc5 {[%clk 0:00:08.2]}
43. Rc2 {[%clk 0:00:02.5]} 43... f4 {[%clk 0:00:08.4]} 44. gxf4 {[%clk 0:00:02]}
44... gxf4 {[%clk 0:00:08.7]} 45. Kf1 {[%clk 0:00:02.9]} 45... f3 {[%clk
0:00:09.2]} 46. Be1 {[%clk 0:00:03]} 46... e3 {[%clk 0:00:09.3]} 0-1

[Event "*** Titled Tuesday Blitz"]
[Site "Chess.com"]
[Date "2021.04.06"]
[Round "4"]
[White "Snowflake"]
[Black "TosicSrecko"]
[Result "1/2-1/2"]
[WhiteElo "2496"]
[BlackElo "2324"]
[TimeControl "180+1"]
[EndTime "10:40:39 PDT"]
[Termination "Game drawn by repetition"]

1. Nf3 {[%clk 0:01:47.1]} 1... d5 {[%clk 0:02:58.9]} 2. e3 {[%clk 0:01:42.5]}
2... c6 {[%clk 0:02:48.2]} 3. c4 {[%clk 0:01:36.7]} 3... e6 {[%clk 0:02:44.1]}
4. b3 {[%clk 0:01:35.4]} 4... Nf6 {[%clk 0:02:38.5]} 5. Bb2 {[%clk 0:01:31.6]}
5... Be7 {[%clk 0:02:39]} 6. d4 {[%clk 0:01:31.8]} 6... Nbd7 {[%clk 0:02:38.7]}
7. Nbd2 {[%clk 0:01:32.2]} 7... O-O {[%clk 0:02:39.1]} 8. Bd3 {[%clk 0:01:32.8]}
8... b6 {[%clk 0:02:39.2]} 9. O-O {[%clk 0:01:33.3]} 9... Bb7 {[%clk 0:02:37.4]}
10. Qe2 {[%clk 0:01:33.6]} 10... c5 {[%clk 0:02:32.8]} 11. cxd5 {[%clk
0:01:32.6]} 11... exd5 {[%clk 0:02:28]} 12. Rfd1 {[%clk 0:01:31.7]} 12... Re8
{[%clk 0:02:23.5]} 13. Rac1 {[%clk 0:01:28.2]} 13... Rc8 {[%clk 0:02:18.2]} 14.
h3 {[%clk 0:01:28.3]} 14... Bd6 {[%clk 0:02:14.3]} 15. Qf1 {[%clk 0:01:27.7]}
15... Qe7 {[%clk 0:02:12.5]} 16. Ba6 {[%clk 0:01:27]} 16... Bxa6 {[%clk
0:02:08.3]} 17. Qxa6 {[%clk 0:01:27.9]} 17... Rc7 {[%clk 0:02:06]} 18. a4 {[%clk
0:01:24.2]} 18... Nb8 {[%clk 0:01:58.2]} 19. Qf1 {[%clk 0:01:12.4]} 19... Nc6
{[%clk 0:01:57.7]} 20. dxc5 {[%clk 0:01:11.4]} 20... bxc5 {[%clk 0:01:56]} 21.
Nb1 {[%clk 0:01:07.7]} 21... Nb4 {[%clk 0:01:39.3]} 22. Nc3 {[%clk 0:01:05.9]}
22... a6 {[%clk 0:01:32.7]} 23. Ba3 {[%clk 0:01:03.8]} 23... Qe6 {[%clk
0:01:12]} 24. Bxb4 {[%clk 0:00:44]} 24... cxb4 {[%clk 0:01:12.9]} 25. Nd4 {[%clk
0:00:44.4]} 25... Qe5 {[%clk 0:01:08.3]} 26. Nf3 {[%clk 0:00:43.5]} 26... Qe6
{[%clk 0:00:52.8]} 27. Ne2 {[%clk 0:00:43]} 27... Rec8 {[%clk 0:00:41.6]} 28.
Rxc7 {[%clk 0:00:38.4]} 28... Rxc7 {[%clk 0:00:40.6]} 29. Ned4 {[%clk
0:00:39.3]} 29... Qc8 {[%clk 0:00:40]} 30. Ne1 {[%clk 0:00:34.3]} 30... Ne4
{[%clk 0:00:38.8]} 31. Nd3 {[%clk 0:00:34.9]} 31... Bf8 {[%clk 0:00:37.3]} 32.
Rc1 {[%clk 0:00:35.1]} 32... Nc3 {[%clk 0:00:37]} 33. Kh1 {[%clk 0:00:34.6]}
33... g6 {[%clk 0:00:35.4]} 34. Nf4 {[%clk 0:00:34.4]} 34... a5 {[%clk
0:00:33.6]} 35. Re1 {[%clk 0:00:31.2]} 35... Bh6 {[%clk 0:00:31.8]} 36. Nd3
{[%clk 0:00:30.6]} 36... Ne4 {[%clk 0:00:31.4]} 37. Nf3 {[%clk 0:00:26.5]} 37...
Rc2 {[%clk 0:00:28.7]} 38. Re2 {[%clk 0:00:24.8]} 38... Rc3 {[%clk 0:00:20.8]}
39. Rb2 {[%clk 0:00:22.9]} 39... Bxe3 {[%clk 0:00:18.9]} 40. Kg1 {[%clk
0:00:18.4]} 40... Nxf2 {[%clk 0:00:17.6]} 41. Nxf2 {[%clk 0:00:16.1]} 41... d4
{[%clk 0:00:13.6]} 42. Re2 {[%clk 0:00:13.5]} 42... Rxb3 {[%clk 0:00:12.2]} 43.
Kh1 {[%clk 0:00:11]} 43... Rc3 {[%clk 0:00:11.1]} 44. Re1 {[%clk 0:00:11.2]}
44... b3 {[%clk 0:00:10.3]} 45. Ne4 {[%clk 0:00:11.6]} 45... b2 {[%clk
0:00:09.9]} 46. Ne5 {[%clk 0:00:11.3]} 46... Rc1 {[%clk 0:00:08.7]} 47. Qxf7+
{[%clk 0:00:11.1]} 47... Kh8 {[%clk 0:00:08.2]} 48. Qf6+ {[%clk 0:00:07.9]}
48... Kg8 {[%clk 0:00:07.6]} 49. Qf7+ {[%clk 0:00:04]} 49... Kh8 {[%clk
0:00:07.8]} 50. Qf6+ {[%clk 0:00:04.9]} 50... Kg8 {[%clk 0:00:08.2]} 51. Qf7+
{[%clk 0:00:01.5]} 1/2-1/2

[Event "*** Titled Tuesday Blitz"]
[Site "Chess.com"]
[Date "2021.04.06"]
[Round "4"]
[White "rynos0411"]
[Black "TheCount"]
[Result "1-0"]
[WhiteElo "2457"]
[BlackElo "2587"]
[TimeControl "180+1"]
[EndTime "10:40:42 PDT"]
[Termination "rynos0411 won on time"]

1. d4 {[%clk 0:03:00.9]} 1... Nf6 {[%clk 0:02:59.2]} 2. c4 {[%clk 0:03:00.6]}
2... g6 {[%clk 0:02:59.1]} 3. Nc3 {[%clk 0:03:00.2]} 3... d5 {[%clk 0:02:59]} 4.
cxd5 {[%clk 0:02:57.6]} 4... Nxd5 {[%clk 0:02:59.9]} 5. Na4 {[%clk 0:02:57.5]}
5... Bf5 {[%clk 0:02:59.3]} 6. Nf3 {[%clk 0:02:51.7]} 6... Bg7 {[%clk
0:02:55.6]} 7. Bd2 {[%clk 0:02:49.5]} 7... O-O {[%clk 0:02:53.3]} 8. e3 {[%clk
0:02:49]} 8... Nb6 {[%clk 0:02:23.5]} 9. Nc5 {[%clk 0:02:46.5]} 9... N8d7 {[%clk
0:02:24]} 10. Nxb7 {[%clk 0:02:39.4]} 10... Qb8 {[%clk 0:02:18.6]} 11. Na5
{[%clk 0:02:39.5]} 11... c5 {[%clk 0:02:18.9]} 12. Be2 {[%clk 0:02:35.3]} 12...
Rc8 {[%clk 0:02:07.6]} 13. Bc3 {[%clk 0:02:17.9]} 13... Nd5 {[%clk 0:01:55.4]}
14. O-O {[%clk 0:02:13.8]} 14... cxd4 {[%clk 0:01:22.8]} 15. Bxd4 {[%clk
0:02:02.8]} 15... e5 {[%clk 0:01:21.9]} 16. Bxe5 {[%clk 0:01:31.5]} 16... Nxe5
{[%clk 0:01:21.5]} 17. Qxd5 {[%clk 0:01:28.8]} 17... Qxb2 {[%clk 0:01:22.1]} 18.
Nxe5 {[%clk 0:01:20.1]} 18... Bxe5 {[%clk 0:01:19.8]} 19. Bf3 {[%clk 0:01:12]}
19... Be6 {[%clk 0:01:06.7]} 20. Qe4 {[%clk 0:00:37.1]} 20... Qxa1 {[%clk
0:00:50.4]} 21. Rxa1 {[%clk 0:00:35.5]} 21... Bxa1 {[%clk 0:00:51.3]} 22. g3
{[%clk 0:00:23.7]} 22... Rc1+ {[%clk 0:00:42.7]} 23. Kg2 {[%clk 0:00:22.5]}
23... Rac8 {[%clk 0:00:37.2]} 24. Nb3 {[%clk 0:00:20.1]} 24... Bxb3 {[%clk
0:00:16.5]} 25. axb3 {[%clk 0:00:21]} 25... Bf6 {[%clk 0:00:12.6]} 26. Qb7
{[%clk 0:00:14.3]} 26... R8c7 {[%clk 0:00:12.7]} 27. Qa6 {[%clk 0:00:10]} 27...
Kg7 {[%clk 0:00:12.7]} 28. Bd5 {[%clk 0:00:10.1]} 28... Ra1 {[%clk 0:00:10.7]}
29. Qd3 {[%clk 0:00:08.6]} 29... Rd7 {[%clk 0:00:08.6]} 30. Qe4 {[%clk
0:00:06.8]} 30... Re7 {[%clk 0:00:06.5]} 31. Qf3 {[%clk 0:00:06.6]} 31... h5
{[%clk 0:00:06.9]} 32. h4 {[%clk 0:00:06.5]} 32... a5 {[%clk 0:00:06.9]} 33. Bc4
{[%clk 0:00:06.3]} 33... Rd7 {[%clk 0:00:06]} 34. Qe4 {[%clk 0:00:06.2]} 34...
Re7 {[%clk 0:00:02]} 35. Qc6 {[%clk 0:00:05.4]} 35... Ra7 {[%clk 0:00:01.6]} 36.
Qd5 {[%clk 0:00:04.8]} 36... Re7 {[%clk 0:00:02]} 37. Qc5 {[%clk 0:00:04.8]}
37... a4 {[%clk 0:00:02.2]} 38. bxa4 {[%clk 0:00:04.9]} 38... Rxa4 {[%clk
0:00:03.1]} 39. Qd5 {[%clk 0:00:05.8]} 39... Raa7 {[%clk 0:00:02.9]} 40. Be2
{[%clk 0:00:05.9]} 40... Rad7 {[%clk 0:00:03.4]} 41. Qf3 {[%clk 0:00:06.5]}
41... Rc7 {[%clk 0:00:04]} 42. Bd3 {[%clk 0:00:06.6]} 42... Red7 {[%clk
0:00:04.4]} 43. Be4 {[%clk 0:00:06.8]} 43... Rd6 {[%clk 0:00:05.1]} 44. Bd5
{[%clk 0:00:06.7]} 44... Rcd7 {[%clk 0:00:05.4]} 45. e4 {[%clk 0:00:07]} 45...
Re7 {[%clk 0:00:05.4]} 46. Qb3 {[%clk 0:00:06.6]} 46... Ra6 {[%clk 0:00:04.7]}
47. f4 {[%clk 0:00:06.7]} 47... Rc7 {[%clk 0:00:02.2]} 48. e5 {[%clk 0:00:06.9]}
48... Be7 {[%clk 0:00:02.2]} 49. Bxf7 {[%clk 0:00:07.1]} 49... Ra3 {[%clk
0:00:02.7]} 50. Qe6 {[%clk 0:00:06.8]} 50... Rc2+ {[%clk 0:00:01.7]} 51. Kh3
{[%clk 0:00:06.9]} 1-0

[Event "*** Titled Tuesday Blitz"]
[Site "Chess.com"]
[Date "2021.04.06"]
[Round "4"]
[White "Snegokhod"]
[Black "Onischuk_V"]
[Result "1-0"]
[WhiteElo "2576"]
[BlackElo "2846"]
[TimeControl "180+1"]
[EndTime "10:40:43 PDT"]
[Termination "Snegokhod won on time"]

1. d4 {[%clk 0:03:00.9]} 1... d6 {[%clk 0:02:59.8]} 2. e4 {[%clk 0:02:58.7]}
2... Nf6 {[%clk 0:02:58.8]} 3. f3 {[%clk 0:02:56.9]} 3... e5 {[%clk 0:02:57.8]}
4. Ne2 {[%clk 0:02:56.7]} 4... Be7 {[%clk 0:02:45.6]} 5. c4 {[%clk 0:02:54.6]}
5... O-O {[%clk 0:02:44.3]} 6. Nbc3 {[%clk 0:02:55.2]} 6... Nfd7 {[%clk
0:02:26.9]} 7. Be3 {[%clk 0:02:53.6]} 7... c5 {[%clk 0:02:23.9]} 8. dxe5 {[%clk
0:02:46.5]} 8... dxe5 {[%clk 0:02:23.1]} 9. Qd2 {[%clk 0:02:44.1]} 9... Nc6
{[%clk 0:02:23.2]} 10. O-O-O {[%clk 0:02:44]} 10... Nd4 {[%clk 0:02:23.2]} 11.
Kb1 {[%clk 0:02:44.3]} 11... b5 {[%clk 0:02:15.2]} 12. Nxb5 {[%clk 0:02:39.3]}
12... Nb6 {[%clk 0:02:14.7]} 13. Nec3 {[%clk 0:02:36.2]} 13... a6 {[%clk
0:02:03.6]} 14. Na3 {[%clk 0:02:36.1]} 14... Be6 {[%clk 0:02:03.3]} 15. Nd5
{[%clk 0:02:35.6]} 15... Rb8 {[%clk 0:02:03.5]} 16. Ka1 {[%clk 0:02:25.5]} 16...
Bd6 {[%clk 0:01:59.1]} 17. Bd3 {[%clk 0:02:23.8]} 17... Na4 {[%clk 0:01:54.8]}
18. b3 {[%clk 0:02:22.4]} 18... Rxb3 {[%clk 0:01:53.2]} 19. axb3 {[%clk
0:02:20.9]} 19... Nxb3+ {[%clk 0:01:52.8]} 20. Ka2 {[%clk 0:02:19.9]} 20... Nxd2
{[%clk 0:01:53]} 21. Bxd2 {[%clk 0:02:14.3]} 21... Bxd5 {[%clk 0:01:39.3]} 22.
exd5 {[%clk 0:02:12]} 22... e4 {[%clk 0:01:30.1]} 23. Bc2 {[%clk 0:02:06.8]}
23... e3 {[%clk 0:01:25.3]} 24. Be1 {[%clk 0:02:00.4]} 24... Nb6 {[%clk
0:01:23.8]} 25. Ba5 {[%clk 0:01:58.8]} 25... Qg5 {[%clk 0:01:03.4]} 26. Bxb6
{[%clk 0:01:51.8]} 26... Qxg2 {[%clk 0:01:02.9]} 27. Rhe1 {[%clk 0:01:33.5]}
27... Re8 {[%clk 0:00:57.6]} 28. Kb3 {[%clk 0:01:30.8]} 28... Qxf3 {[%clk
0:00:55]} 29. Ba5 {[%clk 0:01:24.8]} 29... g6 {[%clk 0:00:45.6]} 30. Ka2 {[%clk
0:01:11.2]} 30... f5 {[%clk 0:00:44.3]} 31. Bd3 {[%clk 0:01:10.8]} 31... Qg2+
{[%clk 0:00:32.2]} 32. Re2 {[%clk 0:01:10]} 32... Qg4 {[%clk 0:00:30]} 33. Nc2
{[%clk 0:01:01.4]} 33... f4 {[%clk 0:00:28.7]} 34. Rde1 {[%clk 0:00:58]} 34...
Qd7 {[%clk 0:00:27.4]} 35. Ka3 {[%clk 0:00:55.5]} 35... Rb8 {[%clk 0:00:22.9]}
36. Nxe3 {[%clk 0:00:51.8]} 36... fxe3 {[%clk 0:00:19]} 37. Rxe3 {[%clk
0:00:52.7]} 37... Qg4 {[%clk 0:00:15.4]} 38. Bc3 {[%clk 0:00:45]} 38... Qf4
{[%clk 0:00:11.7]} 39. h3 {[%clk 0:00:40.4]} 39... Qf8 {[%clk 0:00:10.2]} 40.
Rf1 {[%clk 0:00:33.7]} 40... Qd8 {[%clk 0:00:09.3]} 41. Re6 {[%clk 0:00:29.4]}
41... Qb6 {[%clk 0:00:07.7]} 42. Bc2 {[%clk 0:00:29.7]} 42... Qd8 {[%clk
0:00:06.9]} 43. h4 {[%clk 0:00:28.4]} 43... a5 {[%clk 0:00:06.9]} 44. h5 {[%clk
0:00:28.3]} 44... g5 {[%clk 0:00:04.6]} 45. h6 {[%clk 0:00:25.2]} 45... a4
{[%clk 0:00:04.3]} 46. Bxa4 {[%clk 0:00:23.4]} 46... Qb6 {[%clk 0:00:03.8]} 47.
Rff6 {[%clk 0:00:13.4]} 47... Qa6 {[%clk 0:00:03.5]} 48. Rxd6 {[%clk 0:00:11.6]}
48... Qxc4 {[%clk 0:00:03.8]} 49. Rf3 {[%clk 0:00:09.8]} 49... Qe2 {[%clk
0:00:03.5]} 50. Rdf6 {[%clk 0:00:09.1]} 50... g4 {[%clk 0:00:02]} 51. Rg3 {[%clk
0:00:06.3]} 1-0